bitfinex/quotes_ETHUSD_20250909
["timestamp","ask_amount","ask_price","bid_price","bid_amount"]
[1757445090769,6.50120017,4288.9,4288.8,0.027]
[1757445090971,5.82039992,4288.9,4288.8,0.027]
[1757445091138,5.51479992,4288.9,4288.8,0.7748]
[1757445091733,3.864,4288.9,4288.8,0.7748]
[1757445092351,3.864,4288.9,4288.8,0.3249]
[1757445092960,3.864,4288.9,4288.8,1.2474]
[1757445093443,3.864,4288.9,4288.8,0.7706]
[1757445093845,3.864,4288.9,4288.8,1.2474]
[1757445094264,3.864,4288.9,4288.8,0.7706]
[1757445094451,0.117,4289.0,4288.8,0.7706]
[1757445094651,3.864,4288.9,4288.8,0.7706]
[1757445095767,3.864,4288.9,4288.8,1.2474]
[1757445096159,3.864,4288.9,4288.8,3.57905454]
[1757445098501,0.117,4289.0,4288.9,2.33160017]
[1757445098689,3.865,4289.0,4288.9,3.25410017]
[1757445098892,3.865,4289.0,4288.9,3.55430017]
[1757445099912,0.001,4289.0,4288.9,3.55430017]
[1757445100108,3.865,4289.0,4288.9,3.55430017]
[1757445101216,0.001,4289.0,4288.9,3.10860017]
[1757445101405,3.865,4289.0,4288.9,3.55430017]
[1757445103406,3.865,4289.0,4288.8,2.35864777]
[1757445103579,3.865,4289.0,4288.9,2.63180017]
[1757445103878,3.865,4289.0,4288.9,3.07750017]
[1757445104082,3.865,4289.0,4288.9,0.7459]
[1757445104282,4.1642,4289.0,4288.8,0.027]
[1757445104515,4.6322,4289.0,4288.8,0.027]
[1757445105505,4.1642,4289.0,4288.8,0.027]
[1757445105898,4.1642,4289.0,4288.8,2.3586427]
[1757445106097,4.1642,4289.0,4288.8,0.027]
[1757445106325,4.1642,4289.0,4288.9,2.33160017]
[1757445106630,3.865,4289.0,4288.9,2.33160017]
[1757445107330,3.865,4289.0,4288.8,2.35863907]
[1757445108034,3.865,4289.0,4288.8,0.027]
[1757445108197,1.4243,4288.9,4288.8,0.027]
[1757445108602,0.2992,4288.9,4288.8,0.027]
[1757445109016,3.865,4289.0,4288.8,0.027]
[1757445112442,0.2992,4288.9,4288.8,0.027]
[1757445112932,3.865,4289.0,4288.8,0.027]
[1757445114470,3.865,4289.0,4288.8,2.35865142]
[1757445114826,3.865,4289.0,4288.8,0.027]
[1757445115565,3.865,4289.0,4288.9,0.3002]
[1757445117089,4.1541,4289.0,4288.8,0.027]
[1757445118644,3.865,4289.0,4288.8,0.027]
[1757445119465,3.865,4289.0,4288.9,0.7459]
[1757445121005,3.865,4289.0,4288.9,0.3002]
[1757445121805,3.865,4289.0,4288.8,0.027]
[1757445122013,3.865,4289.0,4288.9,0.3028]
[1757445123415,3.865,4289.0,4288.9,0.7495]
[1757445123572,3.865,4289.0,4288.9,0.3028]
[1757445124209,3.865,4289.0,4288.9,0.7495]
[1757445125440,3.865,4289.0,4288.9,3.08110017]
[1757445126136,0.001,4289.0,4288.9,4.11047961]
[1757445126339,3.864,4289.0,4288.9,4.81025416]
[1757445127037,0.001,4289.0,4288.9,4.81025416]
[1757445127245,3.864,4289.0,4288.9,4.92625416]
[1757445143490,0.001,4289.0,4288.9,4.92625416]
[1757445143708,3.864,4289.0,4288.9,4.92625416]
[1757445144194,3.864,4289.0,4288.9,7.92625416]
[1757445144391,0.001,4289.0,4288.9,7.92625416]
[1757445144897,0.001,4289.5,4289.4,2.33132839]
[1757445145058,3.864,4289.5,4289.4,2.82091444]
[1757445145259,3.864,4289.5,4289.4,5.79760116]
[1757445145595,3.864,4289.5,4289.4,6.49722885]
[1757445147064,3.864,4289.5,4289.4,7.24672885]
[1757445147591,3.864,4289.5,4289.4,7.73192885]
[1757445154954,3.864,4289.5,4289.4,7.84792885]
[1757445157111,3.864,4289.5,4289.4,7.36272885]
[1757445161254,3.864,4289.5,4289.4,6.91602885]
[1757445161718,3.864,4289.5,4289.4,7.38652885]
[1757445164450,3.864,4289.5,4289.4,6.61322885]
[1757445167350,3.864,4289.5,4289.4,6.91322885]
[1757445170154,3.864,4289.5,4289.4,6.61322885]
[1757445175470,3.864,4289.5,4289.4,6.91322885]
[1757445180367,0.001,4289.5,4289.4,6.91322885]
[1757445180575,3.862,4289.5,4289.4,7.88272885]
[1757445181072,0.001,4289.5,4289.4,7.88272885]
[1757445181278,0.001,4289.5,4289.4,8.20422885]
[1757445181580,0.001,4289.5,4289.4,8.55872885]
[1757445181947,0.001,4290.0,4289.9,2.33105666]
[1757445182276,0.001,4290.0,4289.9,5.56416233]
[1757445182491,0.001,4290.0,4289.9,6.80886233]
[1757445183188,0.001,4290.0,4289.9,7.50832689]
[1757445189404,0.001,4290.0,4289.9,7.04192689]
[1757445189766,0.001,4290.0,4289.9,7.50832689]
[1757445191502,0.001,4290.0,4289.9,7.62432689]
[1757445192297,0.001,4290.0,4289.9,8.41632689]
[1757445210407,0.2909,4290.0,4289.9,7.17162689]
[1757445210626,0.001,4290.5,4290.0,3.0]
[1757445210836,0.3741,4290.5,4290.3,2.44683933]
[1757445211038,0.3741,4290.5,4290.3,5.44683933]
[1757445211242,0.1,4290.4,4290.3,5.44683933]
[1757445213315,0.1,4290.4,4290.3,9.30683933]
[1757445214015,0.001,4290.4,4290.3,9.30683933]
[1757445214238,0.001,4290.4,4290.3,10.6957189]
[1757445215419,0.001,4290.4,4290.3,11.4619189]
[1757445215745,0.001,4290.4,4290.3,10.6957189]
[1757445216722,0.001,4290.4,4290.3,11.4877189]
[1757445216927,0.001,4290.4,4290.3,11.7801189]
[1757445217140,0.001,4290.4,4290.3,12.2539189]
[1757445217642,0.001,4290.4,4290.3,12.7279189]
[1757445219673,0.001,4290.4,4290.3,11.4877189]
[1757445220749,0.3046,4290.4,4290.3,7.6277189]
[1757445220948,0.3046,4290.4,4290.3,11.4877189]
[1757445221629,0.3046,4290.4,4290.3,9.15687957]
[1757445221831,0.3046,4290.4,4290.3,11.4877189]
[1757445222262,0.001,4290.4,4290.3,11.4877189]
[1757445223163,0.001,4290.4,4290.3,12.2539189]
[1757445223864,0.001,4290.4,4290.3,11.4877189]
[1757445224160,0.001,4290.4,4290.3,11.9615189]
[1757445225763,0.001,4290.4,4290.3,11.4877189]
[1757445227670,0.001,4290.4,4290.3,11.7801189]
[1757445227969,0.001,4290.4,4290.3,12.7279189]
[1757445229144,0.001,4290.4,4290.3,12.2539189]
[1757445229866,1e-08,4290.9,4290.6,0.792]
[1757445230072,1e-08,4290.9,4290.8,6.23856772]
[1757445230375,1e-08,4290.9,4290.8,10.39296772]
[1757445230734,1e-08,4290.9,4290.8,11.34076772]
[1757445233266,1e-08,4290.9,4290.8,10.39296772]
[1757445233436,0.09900001,4290.9,4290.8,5.44656772]
[1757445233671,0.46940001,4290.9,4290.8,5.44656772]
[1757445233871,0.09900001,4290.9,4290.8,5.44656772]
[1757445235019,1e-08,4290.9,4290.8,7.687458]
[1757445235238,1e-08,4290.9,4290.8,8.751258]
[1757445239515,0.09900001,4290.9,4290.8,7.511058]
[1757445239718,0.09900001,4290.9,4290.8,10.583058]
[1757445239881,0.09900001,4290.9,4290.8,6.719058]
[1757445242034,1e-08,4290.9,4290.8,7.498658]
[1757445242333,1e-08,4290.9,4290.8,7.943858]
[1757445242539,1e-08,4290.9,4290.8,7.459558]
[1757445242938,1e-08,4290.9,4290.8,7.164258]
[1757445243138,1e-08,4290.9,4290.8,6.719058]
[1757445243636,1e-08,4290.9,4290.8,7.806358]
[1757445243805,0.001,4291.4,4291.3,2.33029618]
[1757445244132,0.001,4291.4,4291.3,2.81966545]
[1757445244335,0.1,4291.4,4291.3,9.66636249]
[1757445245541,0.001,4291.4,4291.3,10.89116249]
[1757445248699,0.001,4291.4,4291.3,9.66636249]
[1757445250139,1e-08,4291.9,4291.4,6.12224187]
[1757445250344,1e-08,4291.9,4291.8,6.12202469]
[1757445250502,1e-08,4291.9,4291.8,10.29432469]
[1757445250711,1e-08,4291.9,4291.8,11.22382469]
[1757445252542,0.00100001,4291.9,4291.8,11.22382469]
[1757445253811,0.00100001,4291.9,4291.8,11.33982469]
[1757445254146,0.00100001,4291.9,4291.8,12.3400451]
[1757445254907,0.00100001,4291.9,4291.8,12.8243451]
[1757445256258,0.00100001,4291.9,4291.8,12.0838451]
[1757445257226,0.00100001,4291.9,4291.8,11.5995451]
[1757445257843,1.49260001,4293.3,4291.9,3.792]
[1757445258017,1.49260001,4293.3,4292.9,2.32938147]
[1757445258715,1.49260001,4293.3,4291.8,3.0]
[1757445258913,2.32931605,4293.2,4292.4,2.32969175]
[1757445259115,2.32931605,4293.2,4292.5,2.32964381]
[1757445259307,0.63688772,4293.1,4292.5,2.32964381]
[1757445259506,3.82182476,4293.3,4292.6,2.32958578]
[1757445259924,2.3292784,4293.2,4292.5,2.32960656]
[1757445260144,2.3292784,4293.2,4292.6,2.32958083]
[1757445260350,0.38218784,4293.1,4292.6,2.32958083]
[1757445260710,0.38218784,4293.1,4292.5,2.32962528]
[1757445261456,0.2876,4292.6,4292.1,2.32981626]
[1757445261634,1.788,4292.5,4292.2,2.3297932]
[1757445261943,0.3731,4292.4,4292.3,2.32974859]
[1757445262347,0.4721,4292.4,4292.3,2.32974859]
[1757445262711,0.4721,4292.4,4292.2,2.32979585]
[1757445263326,0.099,4292.4,4292.1,2.32986183]
[1757445263931,0.4694,4292.4,4292.2,2.32975721]
[1757445264446,0.4694,4292.4,4292.1,2.32986183]
[1757445264757,0.4694,4292.4,4292.2,2.32980755]
[1757445265249,0.4694,4292.4,4292.1,2.32986183]
[1757445265410,0.4694,4292.4,4292.2,2.32980755]
[1757445265617,0.4694,4292.4,4292.2,2.32976936]
[1757445265955,0.4694,4292.4,4292.2,2.32975945]
[1757445266253,0.099,4292.4,4292.2,2.32979586]
[1757445266412,0.5762,4292.3,4291.8,0.025]
[1757445266617,0.1017,4291.9,4291.8,2.35502469]
[1757445268052,0.1017,4291.9,4291.8,2.47102469]
[1757445269518,0.1017,4291.9,4291.8,2.47302469]
[1757445269961,0.3677,4292.4,4292.2,2.32975402]
[1757445270115,0.70747,4292.3,4291.9,2.3299704]
[1757445270314,0.1044,4292.3,4291.9,2.3299704]
[1757445270538,0.1044,4292.3,4292.2,2.32980755]
[1757445270949,0.1044,4292.3,4292.0,2.32987822]
[1757445271140,0.3651,4292.2,4292.0,2.32987822]
[1757445271370,0.107,4292.1,4292.0,2.32991612]
[1757445275268,1.788,4292.5,4292.4,2.329699]
[1757445275467,2.50115,4292.5,4292.4,2.329699]
[1757445277161,1.788,4292.5,4292.4,3.564799]
[1757445277498,5.76,4292.5,4292.4,2.329699]
[1757445277887,5.661,4292.5,4292.4,2.329699]
[1757445278193,5.661,4292.5,4292.4,2.772799]
[1757445278595,5.661,4292.5,4292.4,3.263699]
[1757445279015,5.661,4292.5,4292.4,3.564799]
[1757445280319,1.788,4292.5,4292.4,3.121699]
[1757445280481,5.66,4292.5,4292.4,3.564799]
[1757445283604,1.788,4292.5,4292.4,3.121699]
[1757445283916,5.66,4292.5,4292.4,3.564799]
[1757445284115,5.66,4292.5,4292.4,3.574799]
[1757445284619,6.1294,4292.5,4292.4,0.01]
[1757445284793,5.759,4292.5,4292.4,2.339699]
[1757445285823,5.759,4292.5,4292.4,0.01]
[1757445286019,5.759,4292.5,4292.4,2.339699]
[1757445286220,5.759,4292.5,4292.4,0.01]
[1757445286516,5.759,4292.5,4292.4,2.339699]
[1757445287823,5.759,4292.5,4292.4,0.01]
[1757445288155,5.759,4292.5,4292.4,2.339699]
[1757445288425,5.759,4292.5,4292.4,0.01]
[1757445288787,6.3349,4292.5,4292.4,0.01]
[1757445289042,6.7053,4292.5,4292.4,0.01]
[1757445289251,6.3349,4292.5,4292.4,0.01]
[1757445292629,5.759,4292.5,4292.4,0.01]
[1757445295430,5.659,4292.5,4292.4,0.01]
[1757445295633,5.659,4292.5,4292.4,2.339699]
[1757445296134,5.659,4292.5,4292.4,0.01]
[1757445297411,5.659,4292.5,4292.4,2.339699]
[1757445298031,5.659,4292.5,4292.4,0.01]
[1757445299222,9.25381528,4292.5,4292.4,0.01]
[1757445299426,9.47205705,4292.5,4292.4,0.01]
[1757445299627,10.10590851,4292.5,4292.4,0.01]
[1757445300725,10.10590483,4292.5,4292.4,0.01]
[1757445301125,5.86450483,4292.5,4292.4,0.01]
[1757445301340,6.90495903,4292.5,4292.4,0.01]
[1757445301525,6.55576688,4292.5,4292.4,0.01]
[1757445301941,7.05866796,4292.5,4292.4,0.01]
[1757445302243,9.38831268,4292.5,4292.4,0.01]
[1757445303643,9.75871268,4292.5,4292.4,0.01]
[1757445303852,9.97668134,4292.5,4292.4,0.01]
[1757445304143,10.10746256,4292.5,4292.4,0.01]
[1757445304321,9.97668134,4292.5,4292.4,0.01]
[1757445307422,9.75871268,4292.5,4292.4,0.01]
[1757445307949,9.9764833,4292.5,4292.4,0.01]
[1757445309281,9.75871268,4292.5,4292.4,0.01]
[1757445309456,9.38931268,4292.5,4292.4,0.01]
[1757445311578,9.75971268,4292.5,4292.4,0.01]
[1757445314460,5.88571268,4292.5,4292.4,0.01]
[1757445314648,8.8864116,4292.5,4292.4,0.01]
[1757445314853,9.38931268,4292.5,4292.4,0.01]
[1757445317498,9.6070585,4292.5,4292.4,0.01]
[1757445318602,9.38931268,4292.5,4292.4,0.01]
[1757445318747,9.6070818,4292.5,4292.4,0.01]
[1757445322392,9.60668948,4292.5,4292.4,0.01]
[1757445322874,9.50768948,4292.5,4292.4,0.01]
[1757445323678,9.60938948,4292.5,4292.4,0.01]
[1757445324049,9.60638948,4292.5,4292.4,0.01]
[1757445325800,9.73719631,4292.5,4292.4,0.01]
[1757445326202,9.73743891,4292.5,4292.4,0.01]
[1757445328692,10.10513891,4292.5,4292.4,0.01]
[1757445328871,9.73743891,4292.5,4292.4,0.01]
[1757445329068,10.3656222,4292.5,4292.4,0.01]
[1757445329265,9.73743891,4292.5,4292.4,0.01]
[1757445329988,10.52943891,4292.5,4292.4,0.01]
[1757445330762,10.02653783,4292.5,4292.4,0.01]
[1757445331294,13.52962411,4292.5,4292.4,0.01]
[1757445331511,13.39423783,4292.5,4292.4,0.01]
[1757445332195,13.48749956,4292.5,4292.4,0.01]
[1757445332623,13.11979956,4292.5,4292.4,0.01]
[1757445333323,13.48749956,4292.5,4292.4,0.01]
[1757445333485,13.48769504,4292.5,4292.4,0.01]
[1757445333809,10.48769504,4292.5,4292.4,0.01]
[1757445334496,17.60769504,4292.5,4292.4,0.01]
[1757445335432,18.11093076,4292.5,4292.4,0.01]
[1757445336323,18.11093522,4292.5,4292.4,0.01]
[1757445336542,19.36902452,4292.5,4292.4,1e-08]
[1757445337634,17.74323522,4292.5,4292.4,1e-08]
[1757445339043,13.87323522,4292.5,4292.4,1e-08]
[1757445339246,17.74323522,4292.5,4292.4,1e-08]
[1757445341469,17.7434078,4292.5,4292.4,1e-08]
[1757445341647,19.1424078,4292.5,4292.4,1e-08]
[1757445345226,19.97964566,4292.5,4292.4,1e-08]
[1757445350300,19.1424078,4292.5,4292.4,1e-08]
[1757445350671,21.5974078,4292.5,4292.4,1e-08]
[1757445350876,19.1424078,4292.5,4292.4,1e-08]
[1757445352605,19.142418,4292.5,4292.4,1e-08]
[1757445356176,19.040718,4292.5,4292.4,1e-08]
[1757445356611,19.356018,4292.5,4292.4,1e-08]
[1757445357274,19.040718,4292.5,4292.4,1e-08]
[1757445358165,19.354418,4292.5,4292.4,1e-08]
[1757445358365,20.6125073,4292.5,4292.4,1e-08]
[1757445359897,19.354418,4292.5,4292.4,1e-08]
[1757445360803,3.237699,4292.4,4292.3,0.002]
[1757445360963,6.57591852,4292.4,4292.3,0.002]
[1757445361398,6.88811852,4292.4,4292.3,0.002]
[1757445361597,8.28711852,4292.4,4292.3,0.002]
[1757445361804,6.88811852,4292.4,4292.3,0.002]
[1757445362905,2.32991612,4292.0,4291.9,0.002]
[1757445363068,15.9781135,4292.0,4291.9,0.002]
[1757445363262,16.2888135,4292.0,4291.9,0.002]
[1757445363681,16.7507135,4292.0,4291.9,0.002]
[1757445364290,18.00818661,4292.0,4291.9,0.002]
[1757445364493,18.58568661,4292.0,4291.9,0.002]
[1757445366198,17.3282135,4292.0,4291.9,0.002]
[1757445367080,24.4482135,4292.0,4291.9,0.002]
[1757445368507,24.1375135,4292.0,4291.9,0.002]
[1757445371912,25.5365135,4292.0,4291.9,0.002]
[1757445372100,24.1375135,4292.0,4291.9,0.002]
[1757445373585,29.7305135,4292.0,4291.9,0.002]
[1757445374835,29.7305135,4292.0,4291.9,0.4639]
[1757445378392,28.3798567,4292.0,4291.9,0.4639]
[1757445382292,28.4788567,4292.0,4291.9,0.002]
[1757445382989,28.3798567,4292.0,4291.9,0.002]
[1757445383186,30.1688567,4292.0,4291.9,0.002]
[1757445384836,30.1688567,4292.0,4291.9,0.4639]
[1757445385128,22.80826115,4292.0,4291.9,0.4639]
[1757445385287,3.2379704,4291.9,4291.8,1e-08]
[1757445385490,6.5768234,4291.9,4291.8,1e-08]
[1757445386724,0.792,4291.5,4291.4,0.002]
[1757445386915,15.16327234,4291.5,4291.4,0.002]
[1757445387117,16.13221246,4291.5,4291.4,0.002]
[1757445387316,17.65772544,4291.5,4291.4,0.2903]
[1757445387702,17.65772544,4291.5,4291.4,0.7522]
[1757445388031,17.86525309,4291.5,4291.4,0.7522]
[1757445389222,18.18025309,4291.5,4291.4,0.002]
[1757445389437,17.51403762,4291.5,4291.4,0.002]
[1757445389604,17.19903762,4291.5,4291.4,0.002]
[1757445389799,17.19903762,4291.5,4291.4,0.2903]
[1757445389999,17.19909451,4291.5,4291.4,0.2903]
[1757445390208,18.0374766,4291.5,4291.4,0.2903]
[1757445390417,17.19909451,4291.5,4291.4,0.002]
[1757445391427,17.51409451,4291.5,4291.4,0.002]
[1757445391630,17.19909451,4291.5,4291.4,0.002]
[1757445392225,17.0848549,4291.5,4291.4,0.7798]
[1757445392524,17.0848549,4291.5,4291.4,1.2518]
[1757445395200,17.0848549,4291.5,4291.4,0.7798]
[1757445395419,17.3973549,4291.5,4291.4,0.002]
[1757445395619,17.0848549,4291.5,4291.4,0.002]
[1757445395953,17.0848549,4291.5,4291.4,0.3137]
[1757445396447,17.0848549,4291.5,4291.4,0.7798]
[1757445396751,17.08475529,4291.5,4291.4,0.7798]
[1757445399076,17.08475529,4291.5,4291.4,0.3137]
[1757445400651,13.21975529,4291.5,4291.4,0.3137]
[1757445400858,17.08475529,4291.5,4291.4,0.3137]
[1757445401047,17.08475529,4291.5,4291.4,0.7798]
[1757445401956,13.21975529,4291.5,4291.4,0.7798]
[1757445402149,24.44535084,4291.5,4291.4,1.2518]
[1757445402761,24.44635084,4291.5,4291.4,1.2518]
[1757445404082,13.15106944,4291.5,4291.4,1.2518]
[1757445404246,14.65224231,4291.5,4291.4,1.2518]
[1757445405856,10.78724231,4291.5,4291.4,1.2518]
[1757445406089,14.65224231,4291.5,4291.4,1.2518]
[1757445407164,16.44224231,4291.5,4291.4,1.2518]
[1757445408489,18.54525529,4291.5,4291.4,1.2518]
[1757445411977,24.13825529,4291.5,4291.4,1.2518]
[1757445416074,20.27325529,4291.5,4291.4,1.2518]
[1757445416405,24.13825529,4291.5,4291.4,1.2518]
[1757445416890,18.17024231,4291.5,4291.4,1.2518]
[1757445417091,19.61176669,4291.5,4291.4,1.2518]
[1757445417291,21.94195427,4291.5,4291.4,1.2518]
[1757445417496,21.81095532,4291.5,4291.4,1.2518]
[1757445421385,22.12345532,4291.5,4291.4,0.002]
[1757445421587,24.97515556,4291.5,4291.4,0.002]
[1757445421799,26.30349404,4291.5,4291.4,0.002]
[1757445422211,27.09549404,4291.5,4291.4,0.002]
[1757445422520,26.46674245,4291.5,4291.4,0.002]
[1757445423626,26.92864245,4291.5,4291.4,0.002]
[1757445424817,27.7669566,4291.5,4291.4,0.002]
[1757445424991,26.92864245,4291.5,4291.4,0.002]
[1757445426631,26.46674245,4291.5,4291.4,0.002]
[1757445429153,26.01384245,4291.5,4291.4,0.002]
[1757445429324,26.85167316,4291.5,4291.4,0.002]
[1757445430732,26.01384245,4291.5,4291.4,0.002]
[1757445432827,26.01358175,4291.5,4291.4,0.002]
[1757445435635,26.01358012,4291.5,4291.4,0.002]
[1757445436536,26.01357597,4291.5,4291.4,0.002]
[1757445440457,34.73118894,4291.5,4291.4,0.002]
[1757445441348,37.04498894,4291.5,4291.4,0.002]
[1757445441554,3.12240479,4291.1,4291.0,0.002]
[1757445441739,8.05793394,4291.1,4291.0,0.002]
[1757445441927,9.27743394,4291.1,4291.0,0.002]
[1757445442262,9.37073635,4291.1,4291.0,0.002]
[1757445442579,3.1224591,4291.0,4290.9,0.00146818]
[1757445442867,16.0651324,4291.0,4290.9,0.00146818]
[1757445443045,16.3698324,4291.0,4290.9,0.00146818]
[1757445443227,16.4631348,4291.0,4290.9,0.00146818]
[1757445444624,16.4721348,4291.0,4290.9,0.00146818]
[1757445444830,16.08733825,4291.0,4290.9,0.00146818]
[1757445445361,15.62543825,4291.0,4290.9,0.00146818]
[1757445445740,15.17253825,4291.0,4290.9,0.00146818]
[1757445446067,18.73283825,4291.0,4290.9,0.30916818]
[1757445446232,18.73283825,4291.0,4290.9,0.00146818]
[1757445447034,19.56990965,4291.0,4290.9,0.00146818]
[1757445447366,28.08890965,4291.0,4290.9,0.00146818]
[1757445448370,24.22390965,4291.0,4290.9,0.00146818]
[1757445448545,28.08890965,4291.0,4290.9,0.00146818]
[1757445449135,27.25183825,4291.0,4290.9,0.00146818]
[1757445450240,28.0890312,4291.0,4290.9,0.30916818]
[1757445450433,28.0890312,4291.0,4290.9,0.00146818]
[1757445450668,28.0890312,4291.0,4290.9,1.22146818]
[1757445450669,26.12274223,4291.0,4290.9,1.22146818]
[1757445450861,25.28554928,4291.0,4290.9,1.22146818]
[1757445451037,25.7215884,4291.0,4290.9,1.22146818]
[1757445451233,26.68968217,4291.0,4290.9,1.22146818]
[1757445451466,26.47166261,4291.0,4290.9,0.00146818]
[1757445451686,26.34081747,4291.0,4290.9,0.00146818]
[1757445451969,26.68973785,4291.0,4290.9,0.00146818]
[1757445452173,26.98723785,4291.0,4290.9,0.00146818]
[1757445452475,23.12223785,4291.0,4290.9,0.00146818]
[1757445452773,26.85640911,4291.0,4290.9,0.00146818]
[1757445453336,26.63832567,4291.0,4290.9,0.00146818]
[1757445453660,26.42024223,4291.0,4290.9,0.00146818]
[1757445453863,26.68977129,4291.0,4290.9,0.00146818]
[1757445454175,26.68977129,4291.0,4290.9,0.76436818]
[1757445455591,26.68977129,4291.0,4290.9,1.21756818]
[1757445455592,8.28357164,4291.0,4290.9,1.21756818]
[1757445455760,15.10705883,4291.0,4290.9,1.21756818]
[1757445455955,14.47903074,4291.0,4290.9,1.21756818]
[1757445456192,14.38572834,4291.0,4290.9,1.21756818]
[1757445456497,14.38572834,4291.0,4290.9,0.00146818]
[1757445456498,16.10325643,4291.0,4290.9,0.00146818]
[1757445456711,17.77486518,4291.0,4290.9,0.00146818]
[1757445457016,18.24626518,4291.0,4290.9,0.00146818]
[1757445457361,19.64526518,4291.0,4290.9,0.00146818]
[1757445457556,18.24626518,4291.0,4290.9,0.00146818]
[1757445458164,18.24624515,4291.0,4290.9,0.00146818]
[1757445458767,17.61821706,4291.0,4290.9,0.00146818]
[1757445462375,18.91921001,4291.0,4290.9,0.00146818]
[1757445462905,18.45541001,4291.0,4290.9,0.00146818]
[1757445465601,18.15791001,4291.0,4290.9,1.21756818]
[1757445465804,18.15791001,4291.0,4290.9,0.00146818]
[1757445466464,18.45541001,4291.0,4290.9,0.00146818]
[1757445466966,18.91921001,4291.0,4290.9,0.00146818]
[1757445467469,3.12267636,4290.6,4290.5,0.002]
[1757445467667,26.39471547,4290.6,4290.5,0.002]
[1757445467877,26.82306082,4290.6,4290.5,0.002]
[1757445468206,26.91637106,4290.6,4290.5,0.002]
[1757445469284,26.07834878,4290.6,4290.5,0.002]
[1757445469484,27.4908917,4290.6,4290.5,0.002]
[1757445470368,26.65270406,4290.6,4290.5,0.002]
[1757445472392,26.65284656,4290.6,4290.5,0.002]
[1757445472800,26.35534656,4290.6,4290.5,1.2181]
[1757445473483,26.35557843,4290.6,4290.5,1.2181]
[1757445474169,26.35557843,4290.6,4290.5,0.7649]
[1757445475227,13.77096546,4290.6,4290.5,1.2181]
[1757445475432,18.47719505,4290.6,4290.5,1.2181]
[1757445475630,13.24283977,4290.6,4290.5,1.2181]
[1757445475834,16.27261018,4290.6,4290.5,1.2181]
[1757445476218,17.06461018,4290.6,4290.5,1.2181]
[1757445476715,22.65961018,4290.6,4290.5,1.2181]
[1757445476919,22.44152208,4290.6,4290.5,1.2181]
[1757445477097,22.65978283,4290.6,4290.5,1.2181]
[1757445477930,22.56647259,4290.6,4290.5,1.2181]
[1757445481927,22.56647259,4290.6,4290.5,0.7649]
[1757445482126,33.85379353,4290.6,4290.5,0.002]
[1757445482499,34.69202312,4290.6,4290.5,0.002]
[1757445484702,35.15482312,4290.6,4290.5,0.002]
[1757445484904,34.31659353,4290.6,4290.5,0.002]
[1757445485931,34.77849353,4290.6,4290.5,0.002]
[1757445486136,34.87180616,4290.6,4290.5,0.002]
[1757445487136,34.87179754,4290.6,4290.5,0.002]
[1757445487643,35.80889754,4290.6,4290.5,0.002]
[1757445488047,35.80889053,4290.6,4290.5,0.002]
[1757445491535,37.06592396,4290.6,4290.5,0.002]
[1757445491937,36.97261133,4290.6,4290.5,0.002]
[1757445493041,32.64181133,4290.6,4290.5,0.002]
[1757445493284,36.50881133,4290.6,4290.5,0.002]
[1757445495844,35.2517779,4290.6,4290.5,0.002]
[1757445496047,31.0829779,4290.6,4290.5,0.3021]
[1757445496380,36.20601133,4290.6,4290.5,0.7984]
[1757445496786,36.20601133,4290.6,4290.5,0.3021]
[1757445496986,36.20601133,4290.6,4290.5,0.002]
[1757445498253,36.20619599,4290.6,4290.5,0.002]
[1757445499752,17.90664162,4290.6,4290.5,1.2453]
[1757445499983,10.78664162,4290.6,4290.5,1.2453]
[1757445500190,14.65264162,4290.6,4290.5,1.2453]
[1757445501186,14.52162814,4290.6,4290.5,1.2453]
[1757445502280,8.32495178,4290.6,4290.5,1.2453]
[1757445502603,11.5863558,4290.6,4290.5,1.60331695]
[1757445502795,11.5863558,4290.6,4290.5,1.2453]
[1757445507701,7.7193558,4290.6,4290.5,1.2453]
[1757445507864,11.367,4290.6,4290.5,1.2453]
[1757445510709,11.251,4290.6,4290.5,1.2453]
[1757445517527,7.385,4290.6,4290.5,1.2453]
[1757445517829,11.25,4290.6,4290.5,1.2453]
[1757445519025,11.25,4290.6,4290.5,0.4983]
[1757445519223,15.48267636,4290.6,4290.5,0.002]
[1757445519753,15.70031302,4290.6,4290.5,0.002]
[1757445523962,15.22721302,4290.6,4290.5,0.002]
[1757445525339,15.72927796,4290.6,4290.5,0.002]
[1757445525860,15.43707796,4290.6,4290.5,0.002]
[1757445526158,7.60263666,4290.6,4290.5,1.1986]
[1757445526549,11.25,4290.6,4290.5,1.1986]
[1757445527138,11.46799545,4290.6,4290.5,1.1986]
[1757445533571,19.12011347,4290.6,4290.5,0.002]
[1757445533750,23.36290118,4290.6,4290.5,0.002]
[1757445534259,16.47608316,4290.6,4290.5,0.002]
[1757445534470,14.56397181,4290.6,4290.5,0.002]
[1757445535372,23.09558007,4290.6,4290.5,0.002]
[1757445535682,23.22653131,4290.6,4290.5,0.002]
[1757445536534,15.86661329,4290.6,4290.5,0.002]
[1757445536778,17.74910965,4290.6,4290.5,0.002]
[1757445536979,17.29850965,4290.6,4290.5,0.002]
[1757445538876,17.29870827,4290.6,4290.5,0.002]
[1757445539247,17.16775806,4290.6,4290.5,0.002]
[1757445540759,17.29866912,4290.6,4290.5,0.002]
[1757445542189,16.69465806,4290.6,4290.5,0.002]
[1757445544064,17.28046075,4290.6,4290.5,0.002]
[1757445545128,16.82556075,4290.6,4290.5,0.002]
[1757445547167,17.28046075,4290.6,4290.5,0.002]
[1757445551607,16.53336075,4290.6,4290.5,0.002]
[1757445551786,16.40245806,4290.6,4290.5,0.002]
[1757445554414,12.53745806,4290.6,4290.5,0.002]
[1757445554584,16.40245806,4290.6,4290.5,0.002]
[1757445555026,14.5199617,4290.6,4290.5,0.7861]